bitfinex/quotes_SOLUSD_20241001
["timestamp","ask_amount","ask_price","bid_price","bid_amount"]
[1727804203450,41.23646332,146.25,146.12,21.56427202]
[1727804203451,7.04706332,146.25,146.12,21.56427202]
[1727804203767,7.0356,146.26,146.13,1.56416498]
[1727804204266,7.0356,146.26,146.1,0.7046198]
[1727804204267,6.8422,146.16,146.1,7.5488198]
[1727804204499,17.1019,146.19,146.1,0.7046198]
[1727804204894,6.8432,146.13,146.1,0.7046198]
[1727804205205,6.8437,146.12,146.1,0.7046198]
[1727804205402,6.8441,146.11,146.1,0.7046198]
[1727804205621,17.1044,146.17,146.1,0.7046198]
[1727804205622,6.8434,146.13,146.1,0.7046198]
[1727804205793,17.1044,146.17,146.1,0.7046198]
[1727804206119,6.8441,146.11,146.1,0.7046198]
[1727804208292,6.8428,146.14,146.1,0.7046198]
[1727804208515,6.8417,146.17,146.12,6.8436]
[1727804208718,6.8432,146.13,146.1,0.7046198]
[1727804208910,24.38474656,146.23,146.1,0.7046198]
[1727804209097,6.8419,146.16,146.11,6.8439]
[1727804209298,6.8423,146.15,146.1,24.6595198]
[1727804209607,6.8418,146.16,146.11,6.844]
[1727804209811,17.1005,146.2,146.1,17.8150198]
[1727804209995,17.1032,146.18,146.1,0.7046198]
[1727804210195,6.8441,146.11,146.1,0.7046198]
[1727804211607,13.8464,146.11,146.1,0.7046198]
[1727804211812,6.8482,146.03,145.99,18.0546137]
[1727804212032,51.3359,146.1,145.99,18.0546137]
[1727804212325,17.112,146.1,145.99,18.0546137]
[1727804212714,6.8461,146.07,146.02,6.848]
[1727804212909,17.112,146.1,146.03,6.8478]
[1727804213109,6.8456,146.08,146.03,6.8478]
[1727804213430,6.8432,146.13,146.08,6.8455]
[1727804213609,6.6307,146.17,146.11,6.844]
[1727804214129,16.7411,146.18,146.09,17.1117]
[1727804214308,7.04661186,146.19,146.11,17.1095]
[1727804214503,6.8404,146.19,146.14,6.8427]
[1727804214721,6.5332,146.22,146.07,54.21166311]
[1727804214923,7.04841221,146.24,146.2,6.8398]
[1727804215108,6.5332,146.29,146.16,23.776884]
[1727804215310,6.8366,146.28,146.23,6.8384]
[1727804215525,6.9155,146.34,146.19,54.21166311]
[1727804215713,6.8329,146.36,146.22,54.21166311]
[1727804215919,6.832,146.37,146.31,6.8347]
[1727804216220,17.0468,146.39,146.24,17.0947]
[1727804216409,17.0468,146.39,146.25,6.8373]
[1727804216410,6.8349,146.31,146.25,6.8373]
[1727804216604,59.27034656,146.39,146.24,17.0947]
[1727804217006,6.8339,146.33,146.26,6.8367]
[1727804217207,59.27034656,146.39,146.24,17.0947]
[1727804217431,129.73034656,146.39,146.23,1.56309531]
[1727804217631,129.73034656,146.39,146.08,34.2273]
[1727804217632,34.1673,146.34,146.12,61.15356311]
[1727804217839,17.0876,146.31,146.18,17.1014]
[1727804218037,6.8364,146.28,146.18,17.1014]
[1727804218334,17.0828,146.35,146.21,17.0975]
[1727804218728,6.8362,146.28,146.23,6.8381]
[1727804219029,8.79036878,146.38,146.21,17.0975]
[1727804219030,6.8372,146.26,146.21,17.0975]
[1727804219227,8.79036878,146.38,146.22,23.776884]
[1727804219527,6.8352,146.3,146.25,6.8375]
[1727804219728,8.79036878,146.38,146.24,17.0943]
[1727804220037,6.8343,146.32,146.25,6.8371]
[1727804220216,6.8343,146.32,146.26,6.8369]
[1727804220531,6.8348,146.31,146.26,6.8371]
[1727804220706,6.8348,146.31,146.24,1.56298843]
[1727804220907,17.0468,146.39,146.25,23.776884]
[1727804221116,34.76762501,146.44,146.25,23.776884]
[1727804221117,34.1455,146.44,146.28,43.776884]
[1727804221307,34.1455,146.44,146.33,6.8335]
[1727804221529,6.8302,146.41,146.35,6.8329]
[1727804221703,16.8466,146.46,146.35,17.0821]
[1727804221907,6.4708,146.47,146.35,17.0821]
[1727804222144,6.4708,146.47,146.29,1.56245422]
[1727804222310,6.8287,146.44,146.38,6.8315]
[1727804222509,6.4708,146.47,146.34,17.0826]
[1727804222510,6.8292,146.43,146.37,6.8319]
[1727804222808,6.4708,146.47,146.35,6.8326]
[1727804222809,6.8306,146.4,146.35,6.8326]
[1727804223005,6.8306,146.4,146.34,17.0826]
[1727804223006,23.5394,146.47,146.34,17.0826]
[1727804223219,6.8282,146.45,146.39,6.8309]
[1727804223431,6.8282,146.45,146.37,17.0798]
[1727804223432,17.0646,146.51,146.4,1.36582737]
[1727804223619,6.8284,146.45,146.4,17.0756]
[1727804223816,6.8277,146.47,146.4,17.0756]
[1727804224034,6.8269,146.48,146.42,6.8295]
[1727804224241,60.07686878,146.53,146.43,17.0728]
[1727804224242,17.162,146.53,146.43,17.0728]
[1727804224421,17.162,146.53,146.43,23.9015]
[1727804224623,17.162,146.53,146.4,23.776884]
[1727804224927,17.162,146.53,146.41,1.36546108]
[1727804225333,6.824,146.54,146.48,6.8268]
[1727804225536,6.824,146.54,146.49,6.8263]
[1727804225858,0.9311137,146.57,146.45,54.21166311]
[1727804226149,0.9311137,146.57,146.53,6.8244]
[1727804226325,0.9311137,146.57,146.48,20.0]
[1727804226644,0.9311137,146.57,146.48,17.0671]
[1727804226861,6.824,146.55,146.49,6.8263]
[1727804227022,6.824,146.55,146.5,6.8258]
[1727804227223,7.7538137,146.57,146.51,17.063]
[1727804227554,6.8233,146.56,146.51,23.8884]
[1727804227724,7.7541137,146.57,146.51,23.8883]
[1727804228034,0.9311137,146.57,146.54,17.06]
[1727804228240,6.8191,146.65,146.59,6.8215]
[1727804228423,6.8191,146.65,146.56,23.776884]
[1727804228424,41.0661,146.69,146.58,17.0552]
[1727804228625,6.8189,146.65,146.59,6.8216]
[1727804228849,6.818,146.67,146.62,6.8203]
[1727804229053,6.8168,146.7,146.64,6.8194]
[1727804229378,6.8168,146.7,146.57,54.21166311]
[1727804229379,0.9311137,146.73,146.57,20.0]
[1727804229640,0.9311137,146.73,146.56,23.776884]
[1727804229641,6.8189,146.65,146.6,6.8212]
[1727804229842,17.0448,146.68,146.58,1.559363]
[1727804230056,35.0094137,146.73,146.58,1.559363]
[1727804230057,6.8217,146.6,146.58,1.559363]
[1727804230344,6.8217,146.6,146.54,23.8832]
[1727804230345,8.79036878,146.68,146.45,6.6004]
[1727804230674,6.825,146.52,146.47,6.8271]
[1727804230872,6.8245,146.54,146.47,6.8272]
[1727804231171,6.8245,146.54,146.47,6.8271]
[1727804231355,17.0544,146.59,146.47,6.8271]
[1727804231562,17.0544,146.59,146.49,6.8263]
[1727804231787,6.8231,146.57,146.5,18.42945968]
[1727804231947,40.0093,146.63,146.5,17.0646]
[1727804232277,31.74936878,146.63,146.46,55.77230375]
[1727804232445,6.8237,146.55,146.5,6.8258]
[1727804232649,17.0521,146.61,146.5,6.8258]
[1727804232868,6.8232,146.56,146.51,6.8254]
[1727804233069,31.74936878,146.63,146.51,17.0635]
[1727804233276,22.959,146.63,146.51,17.0635]
[1727804233465,6.8222,146.58,146.53,6.8245]
[1727804233974,6.8216,146.6,146.54,8.18838815]
[1727804234157,6.8216,146.6,146.54,6.8239]
[1727804234352,22.959,146.63,146.54,17.0599]
[1727804234574,6.8217,146.6,146.54,23.8835]
[1727804234787,6.8189,146.65,146.59,6.8213]
[1727804234990,6.8189,146.65,146.55,1.36439784]
[1727804234991,17.5242,146.69,146.61,6.8208]
[1727804235192,17.9702137,146.73,146.61,20.0]
[1727804235475,6.8162,146.71,146.62,25.1404074]
[1727804235695,7.7464137,146.73,146.65,17.0471]
[1727804235971,7.7464137,146.73,146.66,1.36324337]
[1727804235972,0.9311137,146.73,146.66,1.36324337]
[1727804236275,7.7463137,146.73,146.67,6.8179]
[1727804236483,6.8157,146.72,146.67,17.0449]
[1727804236678,0.9311137,146.73,146.64,23.8675]
[1727804237156,6.8175,146.69,146.64,17.0485]
[1727804237477,6.817,146.7,146.65,1.36356722]
[1727804237691,17.9692137,146.73,146.63,1.55883126]
[1727804237857,6.8171,146.69,146.64,1.36355088]
[1727804238169,17.9692137,146.73,146.69,6.817]
[1727804238170,0.9311137,146.73,146.69,6.817]
[1727804238354,0.9311137,146.73,146.66,17.0455]
[1727804238555,7.7466137,146.73,146.66,17.0455]
[1727804238757,7.7466137,146.73,146.69,17.0426]
[1727804238758,0.9311137,146.73,146.69,17.0426]
[1727804239059,0.9311137,146.73,146.7,1.55808744]
[1727804239263,0.9311137,146.73,146.64,17.0481]
[1727804239475,0.9311137,146.73,146.65,1.55861867]
[1727804239789,0.9311137,146.73,146.72,6.8157]
[1727804239960,0.9311137,146.73,146.72,8.37357505]
[1727804240166,0.3279621,146.84,146.72,55.76953816]
[1727804240376,6.8106,146.83,146.77,23.8465]
[1727804240580,7.1380621,146.84,146.78,6.8127]
[1727804240782,7.1380621,146.84,146.77,17.0333]
[1727804240960,6.8107,146.83,146.78,6.8128]
[1727804241159,7.1380621,146.84,146.79,6.8123]
[1727804241365,7.1380621,146.84,146.77,17.0333]
[1727804241581,6.811,146.82,146.75,23.776884]
[1727804241760,0.3279621,146.84,146.75,23.776884]
[1727804241761,0.3279621,146.84,146.75,8.37145658]
[1727804242089,0.3279621,146.84,146.75,1.55755658]
[1727804242287,6.8136,146.77,146.71,23.8564]
[1727804242470,17.0279,146.82,146.67,17.0441]
[1727804242669,0.3279621,146.84,146.67,17.0441]
[1727804242670,20.0,146.79,146.67,18.60250614]
[1727804242876,0.3279621,146.84,146.7,17.0414]
[1727804242877,20.0,146.83,146.7,17.0414]
[1727804243184,6.8133,146.78,146.71,1.55798124]
[1727804243388,17.3540621,146.84,146.71,1.55798124]
[1727804243577,6.8115,146.81,146.74,6.8147]
[1727804243979,0.3279621,146.84,146.75,23.776884]
[1727804244287,6.8106,146.83,146.76,6.8138]
[1727804244599,7.1380621,146.84,146.77,30.590184]
[1727804244884,0.3279621,146.84,146.79,23.776884]
[1727804245068,0.3279621,146.84,146.79,17.0311]
[1727804245266,0.3279621,146.84,146.79,23.8435]
[1727804245587,0.3279621,146.84,146.8,30.588784]
[1727804245884,0.3279621,146.84,146.81,1.55692002]
[1727804247366,6.8115,146.81,146.74,6.8146]
[1727804247559,6.8109,146.83,146.76,6.8138]
[1727804247763,6.8121,146.8,146.74,17.0359]
[1727804247997,0.3279621,146.84,146.74,17.0359]
[1727804248287,0.3279621,146.84,146.82,6.811]
[1727804248479,0.3279621,146.84,146.75,35.62805658]
[1727804248480,0.3279621,146.84,146.75,1.55755658]
[1727804248691,6.8124,146.79,146.75,1.55755658]
[1727804249185,0.3279621,146.84,146.82,6.8106]
[1727804249580,0.3279621,146.84,146.82,1.55681398]
[1727804250084,0.3279621,146.84,146.83,30.587384]
[1727804250259,0.3279621,146.84,146.83,50.587384]
[1727804250464,0.3279621,146.84,146.82,1.55681398]
[1727804250869,0.3279621,146.84,146.83,30.587384]
[1727804251072,0.3279621,146.84,146.83,32.14409195]
[1727804251384,0.3279621,146.84,146.83,1.55670795]
[1727804251777,0.3279621,146.84,146.83,25.33359195]
[1727804252163,0.3279621,146.84,146.83,52.14409195]
[1727804253365,0.9311137,146.9,146.83,25.33359195]
[1727804253584,0.9311137,146.9,146.87,17.021]
[1727804253972,0.9311137,146.9,146.86,6.809]
[1727804254176,0.9311137,146.9,146.85,23.776884]
[1727804254380,6.8079,146.89,146.83,8.36720795]
[1727804254682,7.7388137,146.9,146.83,8.36720795]
[1727804254881,0.9311137,146.9,146.85,23.8332]
[1727804255092,0.9311137,146.9,146.83,1.55670795]
[1727804255588,0.9311137,146.9,146.77,6.8129]
[1727804255589,6.8105,146.84,146.77,6.8129]
[1727804255895,6.8092,146.86,146.78,1.55723823]
[1727804256072,0.9311137,146.9,146.78,8.37013823]
[1727804256404,0.9311137,146.9,146.78,1.55723823]
[1727804256405,17.0203,146.89,146.78,1.55723823]
[1727804256568,6.8081,146.89,146.82,6.811]
[1727804256769,7.7384137,146.9,146.84,6.8101]
[1727804256968,0.9311137,146.9,146.83,17.0254]
[1727804257177,0.9311137,146.9,146.83,18.58210795]
[1727804257463,0.9311137,146.9,146.85,17.023]
[1727804257663,0.9311137,146.9,146.85,23.8326]
[1727804258288,0.9311137,146.9,146.87,6.8082]
[1727804258479,0.9311137,146.9,146.89,30.584684]
[1727804259088,0.9311137,146.9,146.89,32.14075608]
[1727804259394,0.9311137,146.9,146.89,52.14075608]
[1727804259691,17.0026,147.04,146.89,52.14075608]
[1727804259692,0.7469244,146.99,146.98,30.580384]
[1727804259876,0.7469244,146.99,146.98,23.776884]
[1727804260078,0.7469244,146.99,146.96,6.8041]
[1727804260270,0.7469244,146.99,146.97,6.8038]
[1727804260491,0.7469244,146.99,146.98,30.580484]
[1727804260718,0.7469244,146.99,146.97,8.35902507]
[1727804261021,0.7469244,146.99,146.98,1.55511925]
[1727804261198,0.7469244,146.99,146.98,32.13560325]
[1727804261694,0.7469244,146.99,146.98,52.13560325]
[1727804263111,6.7982,147.1,147.03,6.801]
[1727804263303,24.2083,147.11,147.03,1.55459041]
[1727804263501,6.7985,147.09,147.03,1.55459041]
[1727804263724,6.7981,147.1,147.04,23.776884]
[1727804264216,24.2083,147.11,147.04,30.577684]
[1727804264436,40.2481,147.17,147.05,1.55437897]
[1727804264623,6.7999,147.06,147.05,1.55437897]
[1727804264820,59.2352,147.17,146.98,71.0246]
[1727804264821,6.8008,147.05,146.98,23.8116]
[1727804265124,16.9963,147.1,146.99,1.55501346]
[1727804265310,6.8009,147.04,146.99,1.55501346]
[1727804265497,2.0,147.15,146.99,1.55501346]
[1727804265498,6.8013,147.03,146.99,1.55501346]
[1727804265698,6.8037,146.98,146.91,6.8064]
[1727804265921,17.0053,147.02,146.92,1.55575434]
[1727804266113,6.8059,146.93,146.92,1.55575434]
[1727804266426,45.776884,147.05,146.83,34.0524]
[1727804266596,88.69995278,147.05,146.89,17.0194]
[1727804266928,17.0122,146.96,146.84,1.55660193]
[1727804267221,6.8052,146.95,146.88,6.8081]
[1727804267723,6.8043,146.97,146.9,6.8072]
[1727804267902,17.0047,147.02,146.89,18.57457208]
[1727804268102,6.8031,147.0,146.93,6.8057]
[1727804268498,6.8023,147.01,146.93,25.37494846]
[1727804268828,6.8014,147.03,146.97,6.804]
[1727804269032,6.8014,147.03,146.96,6.8044]
[1727804269321,24.1685,147.06,146.96,6.8044]
[1727804269322,6.8007,147.05,146.99,6.803]
[1727804269503,24.1685,147.06,146.98,23.8126]
[1727804269504,6.8008,147.04,146.98,23.8126]
[1727804269704,6.8019,147.02,146.97,1.55522507]
[1727804269927,6.8008,147.05,146.98,30.580284]
[1727804270100,24.1685,147.06,146.98,30.580284]
[1727804270101,6.8009,147.04,146.98,30.580284]
[1727804270300,24.1685,147.06,146.98,23.776884]
[1727804270520,6.8018,147.02,146.97,1.55522507]
[1727804270820,6.801,147.04,146.98,6.8032]
[1727804271118,6.801,147.04,146.97,25.36852507]
[1727804271326,24.1685,147.06,146.97,1.55522507]
[1727804271530,41.1683,147.06,146.97,1.55522507]
[1727804272324,23.776884,147.05,146.97,1.55522507]
[1727804272501,23.776884,147.02,146.82,7.1565]
[1727804272704,17.011,146.97,146.85,17.0236]
[1727804272918,6.8073,146.9,146.84,6.8097]
[1727804273099,17.0133,146.95,146.83,1.55670795]
[1727804273418,6.808,146.89,146.83,8.36690795]
[1727804273719,33.1998,146.95,146.83,1.55670795]
[1727804273720,6.8073,146.9,146.83,1.55670795]
[1727804273912,6.8073,146.9,146.83,8.36720795]
[1727804274105,33.1998,146.95,146.83,5.46099095]
[1727804274106,6.8078,146.89,146.83,5.46099095]
[1727804274299,6.8073,146.9,146.82,17.0273]
[1727804274504,7.0795,146.94,146.8,34.0598]
[1727804274713,7.0795,146.94,146.76,7.1565]
[1727804274714,7.0795,146.94,146.81,1.36132168]
[1727804274921,7.0795,146.94,146.8,6.8118]
[1727804274922,6.8092,146.86,146.8,6.8118]
[1727804275137,6.8103,146.84,146.77,17.0332]
[1727804275319,6.8103,146.84,146.77,23.8464]
[1727804275621,6.8111,146.82,146.77,17.0332]
[1727804275832,6.8111,146.82,146.74,17.0367]
[1727804276142,23.776884,146.88,146.75,6.8142]
[1727804276311,6.8116,146.81,146.74,23.8514]
[1727804276637,17.0231,146.86,146.75,6.8143]
[1727804276931,6.8126,146.79,146.72,6.8156]
[1727804277129,17.0265,146.83,146.71,6.8161]
[1727804277330,17.0265,146.83,146.7,17.0411]
[1727804277527,6.8141,146.76,146.7,17.0411]
[1727804277716,23.6179,146.83,146.7,23.8576]
[1727804277928,6.8134,146.77,146.7,17.0411]
[1727804278232,6.8127,146.79,146.73,6.8151]
[1727804278428,23.6179,146.83,146.7,17.0411]
[1727804278644,23.6179,146.83,146.66,6.7969]
[1727804278815,23.6179,146.83,146.69,34.0832]
[1727804278816,6.8114,146.82,146.69,34.0832]
[1727804279015,6.5914,146.83,146.75,23.8497]
[1727804279016,6.8115,146.81,146.75,23.8497]
[1727804279220,6.8125,146.79,146.69,34.0832]
[1727804279419,6.5914,146.83,146.71,17.0393]
[1727804279727,6.8129,146.78,146.71,17.0393]
[1727804280035,6.8134,146.77,146.71,17.0393]
[1727804280241,23.776884,146.82,146.65,34.0938]
[1727804280412,17.0312,146.79,146.64,7.0825856]
[1727804280611,17.0346,146.76,146.6,0.8577779]
[1727804280812,17.031,146.8,146.63,34.0981]
[1727804281044,6.8138,146.77,146.7,6.8165]
[1727804281208,17.031,146.8,146.68,23.8607]
[1727804281417,6.8148,146.74,146.68,17.0435]
[1727804281734,6.8148,146.74,146.68,23.861]
[1727804281947,6.8134,146.77,146.7,6.8166]
[1727804282308,17.0333,146.78,146.64,17.0476]
[1727804282511,36.0593,146.81,146.64,17.0476]
[1727804282718,6.8167,146.7,146.64,17.0476]
[1727804283039,6.8171,146.69,146.64,17.0476]
[1727804283246,16.8863,146.74,146.6,0.8577779]
[1727804283446,6.818,146.67,146.6,24.7307779]
[1727804283620,6.8185,146.66,146.6,17.9098779]
[1727804283952,6.8179,146.68,146.61,6.8207]
[1727804284153,7.0098,146.7,146.6,0.8577779]
[1727804284318,6.82,146.63,146.6,0.8577779]
[1727804284524,7.0098,146.7,146.6,0.8577779]
[1727804284726,20.0,146.69,146.6,0.8577779]
[1727804284929,6.8205,146.62,146.6,0.8577779]
[1727804285245,6.8199,146.63,146.6,0.8577779]
[1727804285546,7.0098,146.7,146.61,6.8207]
[1727804285728,7.0098,146.7,146.6,0.8577779]
[1727804285929,7.0098,146.7,146.6,7.6789779]
[1727804286134,7.0098,146.7,146.61,17.051]
[1727804286326,7.0098,146.7,146.6,0.8577779]
[1727804286962,84.0593,146.81,146.61,23.776884]
[1727804286963,34.0593,146.81,146.61,23.776884]
[1727804287149,23.9506,146.83,146.69,20.0]
[1727804287353,23.9506,146.83,146.73,17.038]
[1727804288053,6.8133,146.77,146.71,6.8161]
[1727804288226,23.9506,146.83,146.76,6.8134]
[1727804288424,23.9506,146.83,146.78,6.8129]
[1727804288425,16.8928,146.83,146.78,6.8129]
[1727804288645,6.5972,146.89,146.79,8.17418971]
[1727804288646,6.8092,146.86,146.79,8.17418971]
[1727804289025,6.5972,146.89,146.8,1.36208802]
[1727804289225,6.8097,146.85,146.79,6.8124]
[1727804289453,6.8097,146.85,146.78,23.8446]
[1727804289638,6.5972,146.89,146.78,17.0318]
[1727804289839,6.5972,146.89,146.79,6.812]
[1727804290146,6.5972,146.89,146.75,17.0357]
[1727804290147,6.8107,146.83,146.75,17.0357]
[1727804290344,6.8101,146.84,146.77,6.8132]
[1727804290563,6.8093,146.86,146.79,6.812]
[1727804290733,20.0,146.88,146.78,17.0312]
[1727804291157,20.0,146.88,146.75,17.0357]
[1727804291338,20.0,146.88,146.72,23.776884]
[1727804291539,72.0,146.88,146.71,17.0394]
[1727804291754,72.0,146.88,146.67,17.0439]
[1727804291755,20.0,146.86,146.67,17.0439]
[1727804291971,20.0,146.81,146.67,17.0439]
[1727804292259,22.0,146.84,146.67,17.0439]
[1727804292454,10.02770211,146.84,146.67,17.0439]
[1727804292774,17.8095,146.78,146.65,6.8189]
[1727804293067,6.8156,146.73,146.64,17.0484]
[1727804293235,17.0345,146.77,146.64,17.0484]
[1727804293436,17.0369,146.74,146.6,17.9098779]
[1727804293738,7.0638,146.77,146.63,17.0494]
[1727804294242,7.0638,146.77,146.66,6.818]
[1727804294243,6.8155,146.73,146.66,6.818]
[1727804294433,7.0638,146.77,146.65,17.0464]
[1727804294870,6.8152,146.73,146.66,6.8184]
[1727804295232,7.0638,146.77,146.65,17.0464]
[1727804295451,7.0638,146.77,146.69,6.817]
[1727804295637,7.0638,146.77,146.69,17.0416]
[1727804295841,6.8159,146.72,146.65,6.8185]
[1727804296051,6.8159,146.72,146.66,6.8184]
[1727804296371,7.0638,146.77,146.7,6.8166]
[1727804296659,6.5439,146.83,146.72,17.039]
[1727804296863,6.5439,146.83,146.67,20.0]
[1727804297166,6.5439,146.83,146.69,43.776884]
[1727804297460,6.5439,146.83,146.78,6.8127]
[1727804297662,6.5439,146.83,146.7,23.776884]
[1727804297959,6.8124,146.79,146.73,23.8519]
[1727804298142,6.5439,146.83,146.73,23.8519]
[1727804298143,6.8123,146.8,146.74,6.8143]
[1727804298343,6.5439,146.83,146.73,17.0372]
[1727804298875,6.5439,146.83,146.67,6.8176]
[1727804298876,6.8153,146.73,146.67,6.8176]
[1727804299055,23.5711,146.83,146.63,20.0]
[1727804299253,6.8125,146.79,146.73,6.8151]
[1727804299456,6.5439,146.83,146.72,17.0384]
[1727804299646,6.812,146.8,146.74,6.8146]
[1727804299841,6.8113,146.82,146.76,6.8137]
[1727804300155,6.812,146.8,146.74,23.8507]
[1727804300750,13.3545,146.83,146.77,6.813]
[1727804300959,6.812,146.8,146.71,20.0]
[1727804301169,6.8119,146.81,146.75,30.591084]
[1727804301857,6.5439,146.83,146.73,17.0377]
[1727804302163,6.5439,146.83,146.71,20.0]
[1727804302383,6.8129,146.78,146.72,17.0386]
[1727804302676,6.5439,146.83,146.69,17.0426]
[1727804302866,6.8143,146.75,146.69,23.8596]
[1727804303075,17.0297,146.81,146.66,23.864]
[1727804303076,6.8158,146.72,146.66,23.864]
[1727804303366,34.0585,146.81,146.68,17.043]
[1727804303582,6.8138,146.77,146.71,6.8157]
[1727804303868,6.5439,146.83,146.73,23.8528]
[1727804303869,6.8129,146.79,146.73,23.8528]
[1727804304166,6.5439,146.83,146.62,40.8976]
[1727804304167,6.8143,146.75,146.69,23.8591]
[1727804304575,17.0329,146.78,146.69,17.0424]
[1727804304754,6.8147,146.75,146.69,23.8594]
[1727804304954,6.8138,146.77,146.7,6.8162]
[1727804305165,6.8161,146.72,146.67,6.8179]
[1727804305445,6.8161,146.72,146.62,40.8976]
[1727804305446,6.8142,146.76,146.7,6.8163]
[1727804305646,17.0329,146.78,146.68,6.8175]
[1727804306789,34.0676,146.77,146.62,34.0994]
[1727804307071,6.817,146.7,146.64,6.819]
[1727804307252,20.0,146.8,146.62,34.0994]
[1727804307458,6.8157,146.72,146.67,23.862]
[1727804307650,20.0,146.8,146.62,34.0994]
[1727804307870,17.0358,146.75,146.65,6.8188]
[1727804308172,34.0673,146.77,146.63,23.8689]
[1727804308173,17.0387,146.73,146.63,23.8689]
[1727804308382,17.6997,146.74,146.6,17.9106779]
[1727804308587,6.818,146.67,146.61,6.8204]
[1727804308869,6.8651,146.73,146.6,17.9106779]
[1727804309053,6.82,146.63,146.6,0.8577779]
[1727804309848,6.8192,146.65,146.6,0.8577779]
[1727804310052,6.8192,146.65,146.6,24.7320779]
[1727804310250,17.0409,146.71,146.6,24.7320779]
[1727804310251,6.8186,146.66,146.6,17.9108779]
[1727804310472,17.0409,146.71,146.6,17.9108779]
[1727804310473,6.8183,146.67,146.61,6.8207]
[1727804310667,6.8186,146.66,146.61,6.8207]
[1727804310856,17.0434,146.69,146.6,0.8577779]
[1727804311056,6.8195,146.64,146.6,0.8577779]
[1727804312072,6.8199,146.63,146.6,0.8577779]
[1727804312273,17.0434,146.69,146.6,0.8577779]
[1727804312476,6.8194,146.64,146.6,0.8577779]
[1727804312679,40.9416,146.73,146.6,7.6789779]
[1727804312680,17.0421,146.7,146.6,7.6789779]
[1727804312855,6.8208,146.61,146.6,0.8577779]
[1727804313055,6.8206,146.62,146.6,0.8577779]
[1727804313253,6.8199,146.63,146.6,0.8577779]
[1727804313456,6.8204,146.62,146.6,0.8577779]
[1727804313658,6.8208,146.61,146.6,0.8577779]
[1727804315374,6.8194,146.64,146.6,0.8577779]
[1727804315554,17.0454,146.67,146.6,0.8577779]
[1727804315755,6.8197,146.64,146.6,0.8577779]
[1727804316064,6.8172,146.69,146.64,6.8192]
[1727804316265,6.817,146.7,146.64,6.8192]
[1727804316467,6.8651,146.73,146.65,8.18201298]
[1727804316649,6.8651,146.73,146.61,23.776884]
[1727804316853,17.6997,146.74,146.63,23.776884]
[1727804317054,6.6374,146.78,146.69,23.776884]
[1727804317250,6.6374,146.78,146.71,6.8159]
[1727804317472,6.8138,146.76,146.71,6.8159]
[1727804317674,6.8138,146.76,146.7,23.857]
[1727804317978,6.6374,146.78,146.7,17.0405]
[1727804318865,6.8143,146.75,146.7,23.8571]
[1727804319354,6.8143,146.75,146.7,17.0405]
[1727804319559,6.8137,146.77,146.7,17.0405]
[1727804319756,6.6374,146.78,146.7,17.0405]
[1727804319961,6.8138,146.76,146.71,6.8161]
[1727804320155,6.6374,146.78,146.63,23.776884]
[1727804320156,6.6374,146.78,146.68,20.0]
[1727804321082,6.8128,146.79,146.73,6.815]
[1727804321283,16.895,146.81,146.72,17.0392]
[1727804321284,6.8134,146.77,146.72,17.0392]
[1727804321680,6.8143,146.75,146.69,23.8596]
[1727804322303,17.0308,146.8,146.68,0.3867908]
[1727804322304,17.0308,146.8,146.68,20.3867908]
[1727804322473,20.0,146.79,146.68,7.2038908]
[1727804322782,20.0,146.8,146.68,0.3867908]
[1727804322992,17.0357,146.76,146.68,0.3867908]
[1727804323161,6.8165,146.71,146.68,0.3867908]
[1727804323863,6.8153,146.73,146.68,0.3867908]
[1727804324261,6.8148,146.74,146.69,6.817]
[1727804324463,20.0,146.78,146.68,0.3867908]
[1727804324666,6.8138,146.76,146.7,6.8165]
[1727804324979,6.8144,146.75,146.7,17.0408]
[1727804325185,6.817,146.7,146.68,0.3867908]